bitfinex/quotes_BTCUSD_20241022
["timestamp","ask_amount","ask_price","bid_price","bid_amount"]
[1729610492817,0.22794059,67220.0,67214.0,0.148778]
[1729610493242,0.22294059,67220.0,67214.0,0.15175303]
[1729610493449,0.22294059,67220.0,67214.0,0.148778]
[1729610494950,0.001658,67222.0,67214.0,0.148778]
[1729610495177,0.001658,67222.0,67214.0,0.300712]
[1729610495394,0.001658,67222.0,67214.0,0.29773715]
[1729610496493,0.001658,67222.0,67214.0,0.148778]
[1729610496701,0.001658,67222.0,67214.0,0.15175282]
[1729610496909,0.001658,67222.0,67214.0,0.148778]
[1729610497562,0.001658,67222.0,67214.0,0.15175284]
[1729610498184,0.001658,67222.0,67214.0,0.148778]
[1729610498391,0.001658,67222.0,67214.0,0.15175277]
[1729610498603,0.22294059,67221.0,67214.0,0.148778]
[1729610498847,0.22294059,67221.0,67214.0,0.15175285]
[1729610499066,0.22294059,67221.0,67214.0,0.148778]
[1729610499908,0.22794059,67221.0,67214.0,0.148778]
[1729610502039,0.002,67220.0,67214.0,0.148778]
[1729610502290,0.22794059,67221.0,67214.0,0.148778]
[1729610502518,0.22994059,67221.0,67214.0,0.148778]
[1729610503003,0.22794059,67221.0,67214.0,0.148778]
[1729610504061,0.22794059,67221.0,67214.0,0.15175298]
[1729610504280,0.0137977,67220.0,67214.0,0.15175298]
[1729610504515,0.01379831,67221.0,67214.0,0.15175298]
[1729610504746,0.001658,67222.0,67214.0,0.15175298]
[1729610505227,0.22294059,67221.0,67214.0,0.148778]
[1729610505474,0.22294059,67221.0,67214.0,0.1517528]
[1729610506351,0.22294059,67221.0,67209.0,0.32086389]
[1729610506352,0.007,67210.0,67209.0,0.02328689]
[1729610506577,0.32048965,67210.0,67209.0,0.02328689]
[1729610506803,0.005,67205.0,67194.0,0.2582611]
[1729610507004,0.01379972,67204.0,67199.0,0.02329081]
[1729610507211,0.01379972,67203.0,67199.0,0.02329081]
[1729610507420,0.01379972,67202.0,67199.0,0.02329081]
[1729610507626,0.005,67205.0,67202.0,0.00223157]
[1729610507924,0.005,67205.0,67203.0,0.00297564]
[1729610507925,0.01381301,67204.0,67203.0,0.00297564]
[1729610508142,0.01381301,67204.0,67202.0,0.00223157]
[1729610508143,0.01381301,67204.0,67202.0,0.00520733]
[1729610508362,0.23398792,67213.0,67208.0,0.148791]
[1729610508574,0.23398792,67213.0,67202.0,0.00223157]
[1729610508575,0.02485675,67212.0,67202.0,0.00223157]
[1729610508787,0.005,67208.0,67202.0,0.00223157]
[1729610509212,0.01380939,67207.0,67202.0,0.00223157]
[1729610509456,0.01380939,67206.0,67202.0,0.00223157]
[1729610509683,0.01380939,67205.0,67202.0,0.00223157]
[1729610509893,0.01380939,67204.0,67202.0,0.15103557]
[1729610510100,0.005,67208.0,67202.0,0.00223157]
[1729610510323,0.01380272,67207.0,67202.0,0.00223157]
[1729610510563,0.005,67204.0,67202.0,0.00223157]
[1729610510798,0.01380272,67203.0,67202.0,0.00223157]
[1729610511284,0.005,67204.0,67202.0,0.15103657]
[1729610511547,0.005,67207.0,67203.0,0.00297574]
[1729610511784,0.01379772,67207.0,67206.0,0.446387]
[1729610511991,0.01379772,67211.0,67204.0,0.297601]
[1729610512208,0.001658,67216.0,67202.0,0.00223157]
[1729610512209,0.01379772,67212.0,67205.0,0.5558571]
[1729610512441,0.01379772,67212.0,67202.0,0.00223157]
[1729610512442,0.01879772,67212.0,67202.0,0.29984057]
[1729610512655,0.002,67210.0,67203.0,0.297605]
[1729610512908,0.01379772,67209.0,67204.0,0.297599]
[1729610513115,0.002,67208.0,67203.0,0.297605]
[1729610513326,0.01579772,67210.0,67204.0,0.1488]
[1729610513568,0.01379772,67209.0,67204.0,0.2976]
[1729610513787,0.01379772,67209.0,67204.0,0.1488]
[1729610513788,0.005,67209.0,67204.0,0.1488]
[1729610514207,0.01879772,67209.0,67202.0,0.00223157]
[1729610514422,0.005,67209.0,67202.0,0.00223157]
[1729610514627,0.002,67206.0,67202.0,0.00223157]
[1729610514837,0.007,67206.0,67202.0,0.00223157]
[1729610515057,0.005,67204.0,67201.0,0.02329075]
[1729610515305,0.165805,67202.0,67201.0,0.02329075]
[1729610515583,4.96410827,67202.0,67201.0,0.02329075]
[1729610515791,0.005,67188.0,67186.0,0.22294059]
[1729610516041,0.01379772,67187.0,67186.0,0.22294059]
[1729610516275,0.005,67188.0,67172.0,0.48120169]
[1729610516793,0.01879772,67188.0,67172.0,0.48120169]
[1729610517007,0.005,67186.0,67173.0,0.22294059]
[1729610517249,0.005,67186.0,67176.0,0.00223269]
[1729610517721,0.005,67186.0,67176.0,0.29995469]
[1729610517722,0.007,67186.0,67176.0,0.29995469]
[1729610518256,0.005,67186.0,67179.0,0.148854]
[1729610518516,0.005,67186.0,67178.0,0.297713]
[1729610518766,0.005,67186.0,67180.0,0.297703]
[1729610519023,0.005,67186.0,67182.0,0.148848]
[1729610519363,0.005,67186.0,67183.0,0.00297652]
[1729610519591,0.005,67186.0,67176.0,0.00223269]
[1729610519592,0.005,67198.0,67185.0,0.00380252]
[1729610519829,0.22294059,67189.0,67188.0,0.148836]
[1729610520071,0.005,67195.0,67188.0,0.148836]
[1729610520072,0.22294059,67194.0,67188.0,0.02329577]
[1729610520333,0.22294059,67194.0,67191.0,0.00223241]
[1729610520761,0.005,67195.0,67191.0,0.00223241]
[1729610521177,0.005,67195.0,67192.0,0.148825]
[1729610521384,0.005,67195.0,67193.0,0.00297618]
[1729610521599,0.005,67199.0,67194.0,0.4070831]
[1729610521831,0.005,67203.0,67201.0,0.148806]
[1729610522040,0.006652,67204.0,67199.0,0.2582611]
[1729610522265,0.006652,67204.0,67191.0,0.00223241]
[1729610522266,0.001652,67204.0,67203.0,0.4070631]
[1729610523543,0.001652,67204.0,67203.0,0.148802]
[1729610523976,0.001652,67204.0,67203.0,0.4070631]
[1729610525920,0.001652,67204.0,67203.0,0.2582611]
[1729610526134,0.001652,67204.0,67195.0,0.2582611]
[1729610526349,0.001652,67204.0,67191.0,0.29989041]
[1729610526350,0.005,67199.0,67191.0,0.00223241]
[1729610526566,0.005,67192.0,67191.0,0.00223241]
[1729610527040,0.31278615,67192.0,67191.0,0.00223241]
[1729610527252,0.1777292,67192.0,67191.0,0.00223241]
[1729610527496,0.16395915,67192.0,67191.0,0.00223241]
[1729610528994,0.015,67192.0,67191.0,0.00223241]
[1729610529997,0.015,67192.0,67188.0,0.2582611]
[1729610530257,0.005,67191.0,67189.0,0.00297631]
[1729610530521,0.005,67191.0,67189.0,0.148833]
[1729610530865,0.005,67197.0,67190.0,0.00297618]
[1729610530999,0.005,67197.0,67188.0,0.2582611]
[1729610531000,0.005,67196.0,67192.0,0.297654]
[1729610531239,0.005,67193.0,67192.0,0.148825]
[1729610531502,0.01,67200.0,67192.0,0.148825]
[1729610531503,0.005,67194.0,67192.0,0.2582611]
[1729610531751,0.005,67198.0,67193.0,0.297649]
[1729610531991,0.005,67198.0,67191.0,0.00223225]
[1729610531992,0.22794059,67195.0,67191.0,0.00223225]
[1729610532238,0.005,67195.0,67194.0,0.2582611]
[1729610535648,0.005,67195.0,67194.0,0.26123713]
[1729610535869,0.01877531,67202.0,67194.0,0.26123713]
[1729610536091,0.001652,67204.0,67203.0,0.148802]
[1729610536343,0.005,67202.0,67201.0,0.4070681]
[1729610536563,0.005,67203.0,67201.0,0.2582611]
[1729610536789,0.005,67202.0,67201.0,0.4070681]
[1729610537263,0.001652,67204.0,67201.0,0.2582611]
[1729610537448,0.007,67202.0,67201.0,0.2582611]
[1729610537658,0.002,67202.0,67201.0,0.2582611]
[1729610537866,0.007,67202.0,67201.0,0.2582611]
[1729610538771,0.005,67202.0,67201.0,0.4070661]
[1729610539193,0.005,67202.0,67201.0,0.2582611]
[1729610539408,0.005,67202.0,67201.0,0.4070681]
[1729610539652,0.001652,67204.0,67203.0,0.148802]
[1729610540502,0.001652,67204.0,67201.0,0.5558741]
[1729610540503,0.001652,67204.0,67201.0,0.2582611]
[1729610541348,0.001652,67204.0,67202.0,0.148804]
[1729610542202,0.001652,67204.0,67203.0,0.148802]
[1729610542418,0.001652,67204.0,67202.0,0.148804]
[1729610542644,0.001652,67204.0,67203.0,0.148802]
[1729610542916,0.001652,67204.0,67201.0,0.2582611]
[1729610543173,0.005,67200.0,67197.0,0.02329156]
[1729610543432,0.005,67198.0,67197.0,0.02329156]
[1729610545568,0.005,67198.0,67197.0,0.02626745]
[1729610546012,0.005,67198.0,67197.0,0.17508345]
[1729610546247,0.005,67198.0,67197.0,0.02329156]
[1729610546657,0.007,67198.0,67197.0,0.02329156]
[1729610546864,0.005,67198.0,67197.0,0.02329156]
[1729610547309,0.007,67198.0,67197.0,0.02329156]
[1729610547747,0.1803941,67198.0,67197.0,0.02329156]
[1729610547970,0.165813,67198.0,67197.0,0.02329156]
[1729610548191,0.017,67195.0,67187.0,0.02329585]
[1729610548442,0.163827,67192.0,67187.0,0.02329585]
[1729610548675,0.015,67192.0,67187.0,0.02329585]
[1729610548895,0.2529825,67192.0,67187.0,0.02329585]
[1729610549099,0.26678996,67192.0,67187.0,0.02329585]
[1729610549322,0.17963446,67192.0,67187.0,0.02329585]
[1729610549555,0.03080746,67192.0,67187.0,0.02329585]
[1729610549768,0.02880746,67192.0,67187.0,0.02329585]
[1729610550010,0.017,67192.0,67187.0,0.02329585]
[1729610550214,0.015,67192.0,67187.0,0.02329585]
[1729610550640,0.017,67192.0,67187.0,0.02329585]
[1729610550842,0.22570378,67192.0,67187.0,0.02329585]
[1729610551025,0.23675106,67192.0,67187.0,0.02329585]
[1729610551260,0.17687428,67192.0,67187.0,0.02329585]
[1729610551443,0.22100263,67192.0,67187.0,0.02329585]
[1729610552347,0.17687428,67192.0,67187.0,0.02329585]
[1729610552824,0.16584,67186.0,67185.0,0.02412439]
[1729610553040,0.64227878,67186.0,67185.0,0.000826]
[1729610553259,0.76091895,67186.0,67185.0,0.000826]
[1729610553471,0.74107185,67186.0,67185.0,0.000826]
[1729610553697,5.48213133,67186.0,67185.0,0.000826]
[1729610553927,3.92673414,67186.0,67185.0,0.000826]
[1729610554138,3.92673393,67186.0,67185.0,0.000826]
[1729610554353,3.89072993,67186.0,67185.0,0.000826]
[1729610554576,0.4241281,67174.0,67173.0,0.22294059]
[1729610554821,0.58412888,67174.0,67173.0,0.22294059]
[1729610555018,0.160882,67167.0,67165.0,0.22517393]
[1729610555469,0.160882,67167.0,67165.0,0.00223334]
[1729610556352,0.165882,67167.0,67165.0,0.00223334]
[1729610557500,0.163882,67167.0,67165.0,0.00223334]
[1729610557906,0.015,67167.0,67165.0,0.00223334]
[1729610558110,0.163882,67167.0,67165.0,0.00223334]
[1729610558320,0.015,67167.0,67165.0,0.00223334]
[1729610558527,0.017,67167.0,67165.0,0.00223334]
[1729610559425,0.165882,67167.0,67165.0,0.00223334]
[1729610559601,0.017,67167.0,67165.0,0.00223334]
[1729610560665,0.165882,67167.0,67165.0,0.00223334]
[1729610560869,0.31484115,67167.0,67165.0,0.00223334]
[1729610562172,0.40587647,67167.0,67165.0,0.00223334]
[1729610562904,0.62881706,67167.0,67161.0,0.02330686]
[1729610563114,2.02286332,67167.0,67161.0,0.02330686]
[1729610563345,2.08890387,67167.0,67158.0,0.05999999]
[1729610563581,2.12786332,67167.0,67158.0,0.05999999]
[1729610563784,2.29017405,67167.0,67158.0,0.05999999]
[1729610564201,2.12786332,67167.0,67158.0,0.05999999]
[1729610564411,2.19378796,67167.0,67158.0,0.05999999]
[1729610564645,0.4241611,67159.0,67158.0,0.05999999]
[1729610564849,0.57312025,67159.0,67158.0,0.05999999]
[1729610565667,0.57812025,67159.0,67158.0,0.05999999]
[1729610566087,0.31985915,67159.0,67158.0,0.05999999]
[1729610566301,0.57812025,67159.0,67158.0,0.05999999]
[1729610566509,0.7270794,67159.0,67158.0,0.05999999]
[1729610567134,0.57812025,67159.0,67158.0,0.05999999]
[1729610567864,0.160922,67149.0,67140.0,0.000842]
[1729610568074,0.015,67149.0,67143.0,0.148934]
[1729610568276,0.015,67149.0,67148.0,0.08753192]
[1729610569163,0.163922,67149.0,67148.0,0.08753192]
[1729610569370,0.015,67149.0,67148.0,0.08753192]
[1729610569987,0.165922,67149.0,67148.0,0.08753192]
[1729610570234,0.017,67149.0,67148.0,0.08753192]
[1729610571086,0.165922,67149.0,67148.0,0.07775069]
[1729610571287,0.017,67149.0,67148.0,0.07775069]
[1729610571915,0.165922,67149.0,67148.0,0.07143069]
[1729610572119,0.017,67149.0,67148.0,0.07143069]
[1729610572340,0.01,67149.0,67148.0,0.07143069]
[1729610572595,0.005,67149.0,67148.0,0.22035469]
[1729610573810,0.007,67149.0,67148.0,0.07143069]
[1729610574346,0.005,67149.0,67148.0,0.22247469]
[1729610574757,0.005,67149.0,67148.0,0.07355069]
[1729610575625,0.14234931,67148.0,67147.0,0.148926]
[1729610576053,0.13734931,67148.0,67147.0,0.15190423]
[1729610576244,0.13734931,67148.0,67147.0,0.32660423]
[1729610576511,0.13734931,67148.0,67147.0,0.323626]
[1729610576880,0.13734931,67148.0,67147.0,0.47258515]
[1729610579331,0.13734931,67148.0,67147.0,0.48237283]
[1729610581761,0.001652,67159.0,67158.0,0.148902]
[1729610581970,0.001652,67159.0,67158.0,0.64175137]
[1729610582174,0.001652,67159.0,67158.0,0.63877409]
[1729610582384,0.001652,67159.0,67158.0,0.46831762]
[1729610582608,0.001652,67159.0,67158.0,0.31935847]
[1729610582851,0.001652,67159.0,67158.0,0.148902]
[1729610583304,0.001652,67159.0,67158.0,0.15187947]
[1729610583559,0.001652,67159.0,67158.0,0.30083862]
[1729610583970,0.001652,67159.0,67158.0,0.47129509]
[1729610584257,0.001652,67159.0,67158.0,0.29786115]
[1729610585130,0.001652,67159.0,67158.0,0.47129475]
[1729610585347,0.001652,67159.0,67158.0,0.46831762]
[1729610585552,0.001652,67159.0,67158.0,0.29786115]
[1729610587015,0.001652,67159.0,67158.0,0.46831762]
[1729610587237,0.001652,67159.0,67158.0,0.56011762]
[1729610587679,0.001652,67159.0,67158.0,0.63951762]
[1729610588145,0.001652,67159.0,67158.0,0.66251762]
[1729610589902,0.22294059,67168.0,67167.0,0.148882]
[1729610590259,0.22294059,67168.0,67167.0,0.47053048]
[1729610590488,0.22294059,67175.0,67174.0,0.148867]
[1729610590940,0.005,67180.0,67179.0,0.148856]
[1729610591181,0.005,67184.0,67179.0,0.00297682]
[1729610591384,0.005,67190.0,67189.0,0.148833]
[1729610591385,0.22294059,67190.0,67189.0,0.148833]
[1729610591616,0.22294059,67190.0,67189.0,0.31928947]
[1729610591836,0.005,67194.0,67189.0,0.17045647]
[1729610592059,0.005,67194.0,67193.0,0.148825]
[1729610592285,0.22294059,67200.0,67193.0,0.17045647]
[1729610592498,0.005,67196.0,67195.0,0.14882]
[1729610592703,0.005,67196.0,67195.0,0.446461]
[1729610592937,0.001652,67201.0,67200.0,0.148809]
[1729610593148,0.001652,67201.0,67200.0,0.31926547]
[1729610599210,0.003652,67201.0,67196.0,0.148817]
[1729610599614,0.003652,67201.0,67194.0,0.52058559]
[1729610599825,0.003652,67201.0,67195.0,0.46809747]
[1729610600025,0.001652,67201.0,67196.0,0.148817]
[1729610600226,0.001652,67201.0,67196.0,0.446453]
[1729610600429,0.001652,67201.0,67196.0,0.148816]
[1729610600662,0.001652,67201.0,67197.0,0.148816]
[1729610601287,0.001652,67201.0,67200.0,0.00223191]
[1729610601479,0.003652,67201.0,67200.0,0.00223191]
[1729610601682,0.001652,67201.0,67200.0,0.00223191]
[1729610602003,0.2310429,67227.0,67200.0,0.33016689]
[1729610602004,0.003658,67222.0,67200.0,0.33016689]
[1729610602212,0.005,67249.0,67221.0,0.17045647]
[1729610602415,0.04392753,67265.0,67221.0,0.17045647]
[1729610602416,0.006686,67256.0,67255.0,0.148687]
[1729610602626,0.001686,67256.0,67255.0,0.148687]
[1729610602858,0.001686,67256.0,67255.0,0.32934251]
[1729610603118,0.001686,67256.0,67255.0,0.15591299]
[1729610603322,0.001686,67256.0,67255.0,0.32636946]
[1729610603528,0.001686,67256.0,67255.0,0.15591299]
[1729610603742,0.001686,67256.0,67255.0,0.00722599]
[1729610603949,0.001686,67256.0,67255.0,0.15591299]
[1729610604159,0.001686,67256.0,67255.0,0.148687]
[1729610604368,0.001686,67256.0,67255.0,0.41668272]
[1729610604600,0.001686,67256.0,67255.0,0.41728683]
[1729610604803,0.001686,67256.0,67255.0,0.47037695]
[1729610606321,0.001686,67256.0,67255.0,0.6193361]
[1729610612586,0.001686,67256.0,67255.0,0.61100507]
[1729610612787,0.001686,67256.0,67255.0,0.56624598]
[1729610613205,0.001686,67256.0,67255.0,0.60935507]
[1729610613423,0.001686,67256.0,67255.0,0.56624598]
[1729610614038,0.001686,67256.0,67255.0,0.61165956]
[1729610615064,0.001686,67256.0,67255.0,0.56624598]
[1729610616300,0.001686,67256.0,67255.0,0.15941906]
[1729610616509,0.001686,67256.0,67250.0,0.32066673]
[1729610616510,0.01,67251.0,67250.0,0.17196873]
[1729610616714,0.01,67254.0,67250.0,0.02327073]
[1729610616926,0.001686,67256.0,67251.0,0.25786777]
[1729610617108,0.001686,67256.0,67250.0,0.00222999]
[1729610617109,0.01,67254.0,67250.0,0.00222999]
[1729610617376,0.002,67251.0,67250.0,0.15092799]
[1729610617810,0.002,67253.0,67250.0,0.29962399]
[1729610618027,0.002,67253.0,67252.0,0.148694]
[1729610618234,0.002,67253.0,67251.0,0.148696]
[1729610618458,0.002,67253.0,67252.0,0.148694]
[1729610618665,0.002,67253.0,67250.0,0.00222999]
[1729610619128,0.002,67253.0,67250.0,0.297397]
[1729610619398,0.002,67253.0,67252.0,0.148694]
[1729610619620,0.001686,67256.0,67255.0,0.148687]
[1729610620374,0.003686,67256.0,67255.0,0.148687]
[1729610620603,0.001686,67256.0,67255.0,0.148687]
[1729610621348,0.005,67254.0,67252.0,0.00223039]
[1729610621574,0.005,67254.0,67253.0,0.148692]
[1729610623295,0.007,67254.0,67253.0,0.148692]
[1729610623522,0.007,67254.0,67252.0,0.00223039]
[1729610623523,0.002,67253.0,67252.0,0.15092439]
[1729610623734,0.012,67254.0,67253.0,0.148692]
[1729610623944,0.012,67254.0,67252.0,0.22411169]
[1729610624158,0.012,67254.0,67253.0,0.148692]
[1729610624824,0.01,67254.0,67253.0,0.148692]
[1729610625032,0.012,67254.0,67251.0,0.29739]
[1729610625251,0.002,67253.0,67249.0,0.2974]
[1729610625470,0.01,67248.0,67247.0,0.02327332]
[1729610625690,0.005,67245.0,67244.0,1.2779]
[1729610626381,0.41882692,67245.0,67244.0,1.2779]
[1729610626615,0.81955951,67245.0,67244.0,1.2779]
[1729610626987,0.74743592,67245.0,67244.0,1.2779]
[1729610627399,0.75842957,67245.0,67244.0,1.2779]
[1729610627820,0.3518528,67245.0,67244.0,1.2779]
[1729610628020,0.5005618,67245.0,67244.0,1.2779]
[1729610628424,0.2522528,67245.0,67244.0,1.2779]
[1729610628854,0.24125915,67245.0,67244.0,1.2779]
[1729610629686,0.012,67245.0,67244.0,1.2779]
[1729610629953,0.012,67245.0,67244.0,1.426612]
[1729610630130,0.012,67245.0,67244.0,1.2779]
[1729610630346,0.012,67245.0,67244.0,1.426612]
[1729610630829,0.007,67245.0,67244.0,0.148712]
[1729610631047,0.01,67244.0,67241.0,0.297437]
[1729610631269,0.01,67244.0,67243.0,0.148714]
[1729610631270,0.012,67244.0,67243.0,0.148714]
[1729610631649,0.002,67240.0,67239.0,0.297446]
[1729610632055,0.002,67242.0,67241.0,0.148718]
[1729610632603,0.01,67241.0,67240.0,0.00223084]
[1729610632837,0.02301129,67241.0,67240.0,0.00223084]
[1729610633477,0.02303691,67241.0,67240.0,0.00223084]
[1729610633696,0.012,67241.0,67240.0,0.00223084]
[1729610633907,0.02303336,67241.0,67236.0,0.149554]
[1729610634117,0.007,67237.0,67236.0,0.149554]
[1729610635010,0.005,67237.0,67236.0,0.149554]
[1729610635227,0.007,67239.0,67238.0,0.148725]
[1729610635452,0.01,67242.0,67241.0,0.148718]
[1729610635877,0.012,67242.0,67241.0,0.148718]
[1729610638456,0.012,67242.0,67240.0,0.22294059]
[1729610638457,0.002,67241.0,67240.0,0.22294059]
[1729610638686,0.158727,67237.0,67226.0,0.148751]
[1729610638936,0.2066948,67237.0,67227.0,0.297499]
[1729610639147,0.21772711,67237.0,67229.0,0.148743]
[1729610639577,0.21772711,67237.0,67226.0,0.2975]
[1729610639791,0.21772711,67237.0,67233.0,0.148736]
[1729610640031,0.21772711,67237.0,67226.0,0.2975]
[1729610640473,0.36668626,67237.0,67225.0,0.22294059]
[1729610640692,0.002,67226.0,67225.0,0.22294059]
[1729610640898,0.005,67227.0,67226.0,0.2975]
[1729610641125,0.005,67227.0,67226.0,0.446251]
[1729610641336,0.007,67227.0,67226.0,0.446251]
[1729610641971,0.007,67227.0,67225.0,0.148753]
[1729610642198,0.005,67224.0,67215.0,0.02328307]
[1729610642410,0.005,67224.0,67223.0,0.37169859]
[1729610642628,0.005,67224.0,67223.0,0.148758]
[1729610643302,0.005,67224.0,67223.0,6e-05]
[1729610643544,0.160756,67224.0,67223.0,6e-05]
[1729610643791,0.54036759,67224.0,67223.0,6e-05]
[1729610644070,0.65036759,67224.0,67223.0,6e-05]
[1729610644547,5.50181053,67224.0,67223.0,6e-05]
[1729610644813,5.44371317,67224.0,67223.0,6e-05]
[1729610645093,5.54207595,67224.0,67223.0,6e-05]
[1729610645357,1.58859786,67224.0,67223.0,6e-05]
[1729610646675,1.61359786,67224.0,67223.0,6e-05]
[1729610646947,1.7835508,67224.0,67223.0,6e-05]
[1729610647211,1.7835508,67224.0,67214.0,0.22294059]
[1729610647212,0.46872894,67215.0,67214.0,0.22294059]
[1729610647448,0.61968809,67215.0,67214.0,0.22294059]
[1729610647683,5.20429133,67215.0,67214.0,0.22294059]
[1729610648168,0.355991,67208.0,67207.0,0.22294059]
[1729610648400,5.43034214,67208.0,67207.0,0.22294059]
[1729610648659,5.38637713,67208.0,67207.0,0.22294059]
[1729610649200,0.277809,67200.0,67192.0,0.22376659]
[1729610649449,0.87270979,67200.0,67192.0,0.22376659]
[1729610649709,0.76672109,67200.0,67192.0,0.22376659]
[1729610649963,0.77770486,67200.0,67192.0,0.22376659]
[1729610650203,0.165825,67193.0,67192.0,0.22376659]
[1729610650444,0.48771255,67193.0,67192.0,0.22376659]
[1729610650675,0.59473709,67193.0,67192.0,0.22376659]
[1729610650913,0.7435024,67193.0,67192.0,0.22376659]
[1729610651147,0.7435024,67193.0,67192.0,0.000826]
[1729610652187,0.60571108,67193.0,67192.0,0.000826]
[1729610652699,0.60571108,67193.0,67182.0,0.22294059]
[1729610652700,0.160847,67183.0,67182.0,0.22294059]
[1729610652907,0.31278161,67183.0,67182.0,0.22294059]
[1729610653159,0.30980615,67183.0,67182.0,0.22294059]
[1729610653639,0.30980615,67183.0,67173.0,0.22378259]
[1729610653640,0.002,67176.0,67173.0,0.22378259]
[1729610653871,0.007,67176.0,67173.0,0.37265059]
[1729610654128,0.007,67176.0,67173.0,0.22378259]
[1729610654129,0.155863,67176.0,67173.0,0.22378259]
[1729610654379,0.007,67176.0,67173.0,0.37265059]
[1729610654882,0.002,67175.0,67173.0,0.37265059]
[1729610655788,0.002,67175.0,67174.0,0.148867]
[1729610656040,0.002,67175.0,67173.0,0.37265059]
[1729610657087,0.002,67175.0,67173.0,0.22378259]
[1729610657352,0.005,67176.0,67173.0,0.22378259]
[1729610657353,0.01,67181.0,67180.0,0.148853]
[1729610657611,0.012,67181.0,67180.0,0.15108572]
[1729610657885,0.012,67181.0,67180.0,0.148853]
[1729610658079,0.012,67181.0,67179.0,0.148854]
[1729610658080,0.002,67180.0,67179.0,0.148854]
[1729610658534,0.002,67180.0,67177.0,0.22294059]
[1729610658535,0.012,67181.0,67177.0,0.52065659]
[1729610658735,0.012,67181.0,67179.0,0.148856]
[1729610658936,0.012,67181.0,67178.0,0.297716]
[1729610659201,0.012,67181.0,67179.0,0.148854]
[1729610659413,0.012,67181.0,67180.0,0.148853]
[1729610659867,0.012,67181.0,67180.0,0.00223263]
[1729610660284,0.012,67181.0,67180.0,0.14798252]
[1729610661404,0.01,67181.0,67180.0,0.14798252]
[1729610661879,0.158867,67174.0,67173.0,0.000842]
[1729610662698,0.01,67174.0,67173.0,0.000842]
[1729610664245,0.01,67177.0,67173.0,0.298579]
[1729610664638,0.01,67177.0,67173.0,0.000842]
[1729610664815,0.01,67177.0,67173.0,0.298577]
[1729610665175,0.01,67177.0,67173.0,0.000842]
[1729610665377,0.01,67177.0,67176.0,0.148862]
[1729610665839,0.01,67177.0,67174.0,0.148866]
[1729610666043,0.01,67177.0,67173.0,0.22378259]
[1729610666180,0.012,67177.0,67174.0,0.15184301]
[1729610666388,0.005,67179.0,67173.0,0.22378259]
[1729610666602,0.005,67201.0,67191.0,0.148829]
[1729610666841,0.005,67205.0,67191.0,0.47071706]
[1729610667122,0.002,67204.0,67191.0,0.55084109]
[1729610667304,0.002,67204.0,67191.0,0.38088815]
[1729610667507,0.01,67199.0,67191.0,0.231929]
[1729610667917,0.01,67199.0,67191.0,0.45784568]
[1729610668153,0.01,67199.0,67191.0,0.231929]
[1729610668529,0.01,67199.0,67191.0,0.23490509]
[1729610669272,0.01,67199.0,67191.0,0.231929]
[1729610670526,0.16995294,67203.0,67182.0,0.0754]
[1729610670527,0.007,67189.0,67182.0,0.0754]
[1729610670862,0.33079294,67186.0,67185.0,0.00223233]
[1729610671588,0.16084,67186.0,67185.0,0.00223233]
[1729610672262,0.012,67186.0,67185.0,0.00223233]
[1729610672518,0.001652,67192.0,67185.0,0.00223233]
[1729610672519,0.001652,67192.0,67190.0,0.148831]
[1729610672724,0.001652,67192.0,67187.0,0.297676]
[1729610672921,0.002,67189.0,67188.0,0.148836]
[1729610673345,0.001652,67192.0,67191.0,0.148829]
[1729610673582,0.00147288,67192.0,67191.0,0.1518053]
[1729610673775,0.00147288,67192.0,67191.0,0.148829]
[1729610673981,0.00347288,67192.0,67191.0,0.148829]
[1729610674743,0.002,67190.0,67186.0,0.29768]
[1729610674973,0.002,67186.0,67176.0,0.005]
[1729610675143,0.002,67186.0,67185.0,0.15107433]
[1729610677038,0.005,67187.0,67186.0,0.14884]
[1729610677255,0.005,67187.0,67185.0,0.15107433]
[1729610677434,0.002,67186.0,67185.0,0.15107433]
[1729610677682,0.002,67186.0,67185.0,0.00223233]
[1729610677897,0.007,67187.0,67186.0,0.14884]
[1729610678103,0.007,67190.0,67185.0,0.00223233]
[1729610678310,0.005,67190.0,67189.0,0.148833]
[1729610679198,0.005,67187.0,67184.0,0.297687]
[1729610679414,0.005,67191.0,67189.0,0.148833]
[1729610679415,0.005,67190.0,67189.0,0.148833]
[1729610679666,0.00147288,67192.0,67191.0,0.148829]
[1729610679964,0.00147288,67192.0,67191.0,0.15180544]
[1729610680431,0.00147288,67192.0,67191.0,0.41037119]
[1729610680660,0.00147288,67192.0,67191.0,0.40739475]
[1729610684564,0.00147288,67192.0,67191.0,0.148829]
[1729610685289,0.00147288,67192.0,67191.0,0.15180527]
[1729610685789,0.00147288,67192.0,67191.0,0.148829]
[1729610687715,0.00347288,67192.0,67191.0,0.148829]
[1729610688350,0.00147288,67192.0,67191.0,0.148829]
[1729610689723,0.00147288,67192.0,67189.0,0.148831]
[1729610689955,0.00147288,67192.0,67190.0,0.148831]
[1729610689956,0.002,67191.0,67190.0,0.148831]
[1729610690199,0.002,67191.0,67186.0,0.297677]
[1729610690447,0.005,67188.0,67187.0,0.37177859]
[1729610690670,0.005,67188.0,67186.0,0.297681]
[1729610690887,0.002,67187.0,67186.0,0.14884]
[1729610691979,0.005,67188.0,67187.0,0.148838]
[1729610692689,0.00147288,67192.0,67189.0,0.148833]
[1729610692926,0.00147288,67192.0,67190.0,0.14883]
[1729610693157,0.00147288,67192.0,67186.0,0.297681]
[1729610693413,0.002,67190.0,67188.0,0.148834]
[1729610693671,0.002,67191.0,67189.0,0.148833]
[1729610694143,0.005,67189.0,67185.0,0.00223257]
[1729610694400,0.005,67189.0,67188.0,0.148836]
[1729610694653,0.005,67189.0,67187.0,0.37177859]
[1729610694903,0.005,67189.0,67188.0,0.148836]
[1729610695414,0.00147288,67192.0,67191.0,0.148829]
[1729610696923,0.00147288,67192.0,67191.0,0.149655]